bitfinex/quotes_SOLUSD_20250616
["timestamp","ask_amount","ask_price","bid_price","bid_amount"]
[1750046228777,4.75922829,155.91,155.87,0.14216157]
[1750046229940,10.25546196,155.94,155.87,0.14216157]
[1750046230248,4.75922829,155.91,155.87,0.14216157]
[1750046232581,10.25546196,155.94,155.87,0.14216157]
[1750046232764,4.75922829,155.92,155.87,11.31695164]
[1750046233165,4.75922829,155.92,155.87,4.90138986]
[1750046233574,4.75922829,155.92,155.88,0.28432314]
[1750046233975,4.75922829,155.92,155.89,0.14216157]
[1750046235687,4.75922829,155.91,155.89,0.14216157]
[1750046236481,4.75922829,155.91,155.88,0.42648471]
[1750046237089,4.75922829,155.91,155.88,0.28432314]
[1750046237259,4.75922829,155.91,155.88,0.42648471]
[1750046239382,5.48,155.94,155.88,0.42648471]
[1750046239596,4.75922829,155.92,155.88,0.42648471]
[1750046244866,3.04572902,155.92,155.88,0.42648471]
[1750046246395,5.48,155.94,155.88,0.42648471]
[1750046246595,3.04572902,155.93,155.88,0.42648471]
[1750046247993,5.48,155.94,155.9,0.14216157]
[1750046248199,5.48,155.94,155.9,3.47221373]
[1750046248493,8.52572902,155.94,155.9,0.42648471]
[1750046250284,5.48,155.94,155.92,0.14216157]
[1750046250691,5.48,155.94,155.92,0.42648471]
[1750046266194,5.48,155.94,155.92,3.47221373]
[1750046266598,5.48,155.94,155.92,0.42648471]
[1750046267103,8.52572902,155.94,155.92,0.42648471]
[1750046267400,8.52572902,155.94,155.92,0.28432314]
[1750046272605,3.04572902,155.93,155.91,0.28432314]
[1750046272794,3.04572902,155.92,155.91,0.28432314]
[1750046273191,5.48,155.94,155.91,0.28432314]
[1750046273390,3.04572902,155.92,155.91,0.28432314]
[1750046275615,3.04572902,155.92,155.9,0.14216157]
[1750046280306,3.04572902,155.93,155.9,0.14216157]
[1750046282928,3.04572902,155.92,155.9,0.14216157]
[1750046288528,3.04572902,155.91,155.89,0.14216157]
[1750046289429,4.78208279,155.93,155.89,0.14216157]
[1750046289611,3.04572902,155.92,155.89,0.14216157]
[1750046294607,4.78208279,155.93,155.89,0.14216157]
[1750046294814,3.04572902,155.9,155.88,18.933972]
[1750046295634,3.04572902,155.91,155.88,18.933972]
[1750046296314,10.26208279,155.94,155.89,0.14216157]
[1750046296508,3.04572902,155.92,155.89,0.14216157]
[1750046304070,3.04572902,155.92,155.88,0.42648471]
[1750046308161,3.04572902,155.91,155.88,0.42648471]
[1750046308777,3.04572902,155.9,155.88,0.42648471]
[1750046309458,3.04572902,155.91,155.88,0.42648471]
[1750046309660,3.04572902,155.9,155.88,0.42648471]
[1750046311268,4.78208279,155.93,155.88,0.42648471]
[1750046311466,3.04572902,155.9,155.88,0.42648471]
[1750046314871,7.82781181,155.9,155.88,0.42648471]
[1750046315179,3.04572902,155.89,155.86,0.14216157]
[1750046315388,3.04572902,155.88,155.86,0.14216157]
[1750046315592,3.04572902,155.89,155.86,0.14216157]
[1750046319784,4.78762042,155.93,155.88,0.42648471]
[1750046319961,3.04572902,155.93,155.88,19.07613357]
[1750046320279,3.04572902,155.92,155.88,19.07613357]
[1750046324608,4.78762042,155.94,155.88,19.07613357]
[1750046324822,3.04572902,155.92,155.88,19.07613357]
[1750046326286,4.78762042,155.94,155.88,19.07613357]
[1750046326605,3.04572902,155.89,155.88,19.07613357]
[1750046326777,3.04572902,155.89,155.84,18.64964886]
[1750046327093,3.04572902,155.88,155.85,0.42648471]
[1750046328299,3.04572902,155.88,155.85,0.28432314]
[1750046328707,3.04572902,155.88,155.85,0.42648471]
[1750046330084,3.04572902,155.87,155.85,0.14216157]
[1750046330285,3.04572902,155.86,155.85,0.14216157]
[1750046330898,3.04572902,155.86,155.84,0.14216157]
[1750046331097,3.04572902,155.85,155.84,0.14216157]
[1750046332523,3.04572902,155.85,155.83,0.42648471]
[1750046333326,3.04572902,155.84,155.83,0.42648471]
[1750046333623,3.04572902,155.85,155.83,0.42648471]
[1750046333827,4.78762042,155.9,155.83,0.42648471]
[1750046333998,3.04572902,155.85,155.83,0.42648471]
[1750046335615,3.04572902,155.87,155.83,0.42648471]
[1750046335918,3.04572902,155.86,155.83,0.42648471]
[1750046336321,5.48,155.88,155.83,0.42648471]
[1750046336498,3.04572902,155.86,155.83,0.42648471]
[1750046347623,5.48,155.88,155.83,0.42648471]
[1750046347806,3.04572902,155.86,155.83,0.42648471]
[1750046352620,3.04572902,155.85,155.83,0.42648471]
[1750046358839,3.04572902,155.86,155.83,0.42648471]
[1750046361012,3.04572902,155.87,155.83,0.42648471]
[1750046361211,5.48,155.88,155.85,0.42648471]
[1750046361521,5.48,155.88,155.87,0.14216157]
[1750046363941,5.48,155.88,155.87,0.42648471]
[1750046366150,8.52572902,155.88,155.85,18.64964886]
[1750046366335,3.04572902,155.87,155.85,18.64964886]
[1750046366530,3.04572902,155.87,155.86,0.14216157]
[1750046366939,3.04572902,155.87,155.86,0.28432314]
[1750046367323,3.04572902,155.87,155.86,0.42648471]
[1750046369020,3.04572902,155.87,155.84,0.14216157]
[1750046369355,3.04572902,155.86,155.84,0.14216157]
[1750046370040,3.04572902,155.86,155.84,0.28432314]
[1750046370964,3.04572902,155.85,155.84,0.14216157]
[1750046371259,5.48,155.88,155.84,0.14216157]
[1750046371437,3.04572902,155.85,155.84,0.14216157]
[1750046373426,3.04572902,155.86,155.84,0.14216157]
[1750046374334,5.48,155.88,155.84,0.14216157]
[1750046374540,3.04572902,155.86,155.84,0.14216157]
[1750046388344,3.04572902,155.85,155.83,0.28432314]
[1750046388552,3.04572902,155.84,155.83,0.14216157]
[1750046388970,3.04572902,155.84,155.83,0.28432314]
[1750046400656,3.04572902,155.85,155.83,0.28432314]
[1750046402754,31.48,155.88,155.83,0.28432314]
[1750046403078,31.48,155.88,155.83,0.42648471]
[1750046403384,3.04572902,155.86,155.83,0.42648471]
[1750046404864,3.04572902,155.87,155.83,0.42648471]
[1750046405659,8.52572902,155.88,155.83,3.47221373]
[1750046408087,5.48,155.88,155.87,22.12186259]
[1750046408658,5.48,155.88,155.87,3.47221373]
[1750046408877,3.04572902,155.93,155.88,0.42648471]
[1750046409077,7.82210324,155.93,155.9,0.28432314]
[1750046409267,3.04572902,155.93,155.9,0.28432314]
[1750046409470,7.82210324,155.93,155.9,0.28432314]
[1750046409668,3.04572902,155.93,155.9,0.28432314]
[1750046409865,3.04572902,155.92,155.9,0.28432314]
[1750046410078,3.04572902,155.91,155.86,0.42648471]
[1750046410271,3.04572902,155.89,155.86,0.42648471]
[1750046410964,3.04572902,155.9,155.86,0.42648471]
[1750046412989,4.75999692,155.91,155.86,5.18648163]
[1750046413896,4.75999692,155.9,155.86,0.42648471]
[1750046414673,4.75999692,155.89,155.86,0.42648471]
[1750046414891,4.75999692,155.9,155.86,0.42648471]
[1750046415476,4.75999692,155.91,155.88,0.28432314]
[1750046415685,4.75999692,155.92,155.88,0.42648471]
[1750046416289,4.77637422,155.93,155.88,0.42648471]
[1750046416467,4.75999692,155.92,155.88,19.07613357]
[1750046418895,4.77637422,155.94,155.88,23.83613049]
[1750046419083,4.75999692,155.92,155.88,23.83613049]
[1750046419283,4.75999692,155.92,155.88,0.42648471]
[1750046421183,4.75999692,155.91,155.87,19.07613357]
[1750046421392,4.75999692,155.9,155.87,19.07613357]
[1750046421772,4.75999692,155.91,155.87,0.42648471]
[1750046425198,4.75999692,155.89,155.84,1.5468]
[1750046425398,4.75999692,155.89,155.85,18.64964886]
[1750046425593,4.75999692,155.88,155.86,0.14216157]
[1750046426000,4.75999692,155.89,155.86,0.42648471]
[1750046426300,26.0,155.92,155.86,0.42648471]
[1750046426511,4.75999692,155.89,155.86,0.42648471]
[1750046427279,4.75999692,155.89,155.84,6.30679692]
[1750046427280,4.75999692,155.87,155.84,19.07613357]
[1750046427906,4.75999692,155.87,155.84,0.42648471]
[1750046428106,4.75999692,155.89,155.84,5.18648163]
[1750046428306,4.75999692,155.89,155.81,53.0201361]
[1750046428307,4.75999692,155.9,155.87,0.28432314]
[1750046429690,4.75999692,155.89,155.87,0.28432314]
[1750046430395,4.75999692,155.88,155.85,18.64964886]
[1750046430598,4.75999692,155.86,155.82,18.64964886]
[1750046430801,4.75999692,155.84,155.82,18.64964886]
[1750046431002,4.75999692,155.83,155.82,18.64964886]
[1750046431198,4.75999692,155.83,155.82,18.933972]
[1750046431394,4.75999692,155.83,155.82,18.64964886]
[1750046432508,4.75999692,155.83,155.82,18.933972]
[1750046432790,4.75999692,155.83,155.82,18.79181043]
[1750046432995,4.75999692,155.83,155.82,18.64964886]
[1750046433200,4.75999692,155.83,155.81,1.0401361]
[1750046433804,4.75999692,155.82,155.81,19.83194653]
[1750046434000,4.75999692,155.83,155.82,18.79181043]
[1750046434225,4.75999692,155.84,155.82,18.79181043]
[1750046434428,4.75999692,155.83,155.82,0.28432314]
[1750046434723,5.48,155.86,155.82,0.28432314]
[1750046435018,5.48,155.86,155.82,18.933972]
[1750046435187,4.75999692,155.84,155.82,18.933972]
[1750046435615,4.75999692,155.83,155.82,18.933972]
[1750046435997,4.75999692,155.84,155.83,0.14216157]
[1750046448228,4.75999692,155.84,155.82,18.79181043]
[1750046448423,4.75999692,155.83,155.82,18.933972]
[1750046453608,4.75999692,155.83,155.81,1.0401361]
[1750046453831,26.0,155.85,155.81,1.0401361]
[1750046454041,4.75999692,155.82,155.81,1.0401361]
[1750046456534,7.93755969,155.82,155.81,1.0401361]
[1750046464438,30.75999692,155.82,155.81,1.0401361]
[1750046468045,4.75999692,155.82,155.81,1.0401361]
[1750046468222,30.75999692,155.82,155.75,36.09316205]
[1750046468418,4.75999692,155.76,155.75,36.37748519]
[1750046469039,26.0,155.79,155.75,35.87748519]
[1750046469340,4.75999692,155.76,155.75,35.87748519]
[1750046470347,4.75348421,155.82,155.76,18.933972]
[1750046470653,18.03576547,155.83,155.82,27.07963357]
[1750046470832,4.75999692,155.91,155.86,18.64964886]
[1750046471027,4.75999692,155.91,155.87,0.42648471]
[1750046471220,5.58,155.93,155.86,18.64964886]
[1750046471429,4.75999692,155.88,155.87,0.28432314]
[1750046472057,4.75999692,155.92,155.87,5.18648163]
[1750046472221,5.58,155.93,155.87,5.18648163]
[1750046472222,4.75999692,155.91,155.87,0.42648471]
[1750046473325,4.75999692,155.92,155.87,0.42648471]
[1750046474446,4.75999692,155.92,155.87,5.18648163]
[1750046474970,3.24541219,155.98,155.91,4.75999692]
[1750046475149,3.24541219,155.98,155.97,5.18648163]
[1750046475332,16.6481741,156.0,155.98,19.07613357]
[1750046475534,16.6481741,156.0,155.99,23.83613049]
[1750046476320,4.75999692,156.08,156.0,19.07613357]
[1750046476525,4.75999692,156.08,156.04,0.42648471]
[1750046479944,4.75999692,156.05,155.99,18.64964886]
[1750046480155,26.0,156.07,155.99,44.74964886]
[1750046480355,26.0,156.09,156.0,0.42648471]
[1750046480540,4.75999692,156.04,155.99,49.50964578]
[1750046480741,4.75999692,156.03,155.99,44.74964886]
[1750046480946,4.75999692,156.01,155.99,18.64964886]
[1750046481259,4.75999692,156.0,155.95,26.16]
[1750046481441,4.75999692,155.99,155.95,26.16]
[1750046481645,4.75999692,155.99,155.96,18.933972]
[1750046483042,4.75999692,155.99,155.96,18.79181043]
[1750046483240,4.75999692,155.98,155.96,18.79181043]
[1750046483461,4.75999692,155.99,155.96,18.79181043]
[1750046483662,4.75999692,155.99,155.97,0.14216157]
[1750046485347,4.75999692,156.05,156.0,0.14216157]
[1750046485664,4.75999692,156.05,156.01,0.14216157]
[1750046485962,26.0,156.07,156.01,0.14216157]
[1750046485963,4.75999692,156.04,156.01,0.14216157]
[1750046486167,10.35999692,156.08,156.03,23.69396892]
[1750046486366,4.75999692,156.07,156.03,18.933972]
[1750046486753,4.75999692,156.07,156.03,0.28432314]
[1750046486966,4.75999692,156.04,156.03,0.28432314]
[1750046488045,5.6,156.08,156.03,0.28432314]
[1750046488244,4.75999692,156.04,156.0,0.42648471]
[1750046488766,4.75999692,156.05,156.0,5.18648163]
[1750046489074,4.75999692,156.05,156.0,8.1698165]
[1750046489075,7.74333179,156.05,156.0,8.1698165]
[1750046489944,16.45902017,156.14,156.04,26.81946536]
[1750046490140,16.45902017,156.14,156.1,7.74333179]
[1750046490371,16.45902017,156.14,156.08,0.42648471]
[1750046490372,72.22,156.16,156.12,18.933972]
[1750046490573,79.96333179,156.16,156.12,0.28432314]
[1750046490878,7.74333179,156.14,156.12,0.28432314]
[1750046491050,72.22,156.16,156.12,0.28432314]
[1750046491249,7.74333179,156.15,156.12,0.28432314]
[1750046491974,7.74333179,156.14,156.12,0.28432314]
[1750046492182,72.22,156.16,156.1,18.64964886]
[1750046492481,7.74333179,156.12,156.1,18.64964886]
[1750046493570,7.9143,156.26,156.14,18.64964886]
[1750046493780,7.74333179,156.23,156.19,0.28432314]
[1750046494162,7.74333179,156.22,156.19,0.28432314]
[1750046494372,7.74333179,156.21,156.19,0.28432314]
[1750046495256,7.74333179,156.2,156.14,0.42648471]
[1750046495458,7.74333179,156.17,156.16,0.28432314]
[1750046496381,7.74333179,156.18,156.16,0.28432314]
[1750046497085,26.0,156.23,156.16,0.28432314]
[1750046497287,7.74333179,156.18,156.16,0.28432314]
[1750046497657,7.74333179,156.17,156.16,0.28432314]
[1750046498062,7.74333179,156.18,156.16,0.28432314]
[1750046498258,7.74333179,156.17,156.16,0.28432314]
[1750046499985,7.74333179,156.17,156.08,6.2239]
[1750046500161,7.74333179,156.14,156.09,18.64964886]
[1750046500361,7.74333179,156.13,156.1,0.42648471]
[1750046500880,7.74333179,156.14,156.1,0.42648471]
[1750046501569,5.6,156.18,156.1,0.42648471]
[1750046501757,5.6,156.18,156.12,8.1698165]
[1750046501960,13.34333179,156.18,156.15,0.28432314]
[1750046502161,13.34333179,156.18,156.09,7.88549336]
[1750046502162,7.74333179,156.16,156.09,7.88549336]
[1750046502381,7.74333179,156.14,156.11,0.14216157]
[1750046502685,7.74333179,156.14,156.1,45.213972]
[1750046503076,7.74333179,156.13,156.1,0.28432314]
[1750046503278,7.74333179,156.13,156.1,0.42648471]
[1750046504175,7.74333179,156.14,156.1,0.42648471]
[1750046505689,7.74333179,156.11,156.05,7.74333179]
[1750046505875,7.74333179,156.09,156.05,18.64964886]
[1750046506074,7.74333179,156.09,156.03,110.87755503]
[1750046506075,7.74333179,156.07,156.03,103.13422324]
[1750046506270,26.0,156.13,156.03,129.41422324]
[1750046506480,7.74333179,156.08,156.04,19.07613357]
[1750046506684,7.74333179,156.08,156.04,18.64964886]
[1750046507475,7.74333179,156.08,156.05,0.14216157]
[1750046507676,7.74333179,156.08,156.05,0.28432314]
[1750046508488,26.0,156.13,156.05,0.28432314]
[1750046508489,26.0,156.14,156.05,8.1698165]
[1750046508705,7.74333179,156.1,156.05,8.1698165]
[1750046508874,7.74333179,156.09,156.05,0.42648471]
[1750046509687,7.74333179,156.09,156.05,0.28432314]
[1750046509884,7.74333179,156.08,156.05,0.28432314]
[1750046510572,7.74333179,156.09,156.05,0.28432314]
[1750046510899,7.74333179,156.08,156.05,0.28432314]
[1750046511594,7.74333179,156.09,156.05,0.28432314]
[1750046512096,7.74333179,156.11,156.05,8.1698165]
[1750046512268,7.74333179,156.12,156.05,8.1698165]
[1750046514387,7.74333179,156.12,156.05,0.42648471]
[1750046515186,7.24333179,156.12,156.05,0.42648471]
[1750046515898,26.0,156.14,156.08,0.28432314]
[1750046516102,7.8393,156.17,156.11,18.933972]
[1750046516301,1.5657,156.17,156.11,26.67730379]
[1750046516499,7.74333179,156.16,156.11,8.02765493]
[1750046516804,7.74333179,156.15,156.11,18.933972]
[1750046516976,7.74333179,156.12,156.09,18.64964886]
[1750046517380,1.5657,156.17,156.09,18.64964886]
[1750046517381,7.74333179,156.11,156.09,18.64964886]
[1750046517804,7.74333179,156.11,156.08,18.933972]
[1750046518504,7.74333179,156.11,156.08,0.28432314]
[1750046519000,7.74333179,156.12,156.08,0.28432314]
[1750046519580,7.74333179,156.13,156.08,0.28432314]
[1750046521421,7.74333179,156.12,156.08,0.28432314]
[1750046521722,33.74333179,156.14,156.08,8.02765493]
[1750046522004,7.74333179,156.14,156.08,8.02765493]
[1750046522178,26.0,156.16,156.11,0.14216157]
[1750046522518,7.74333179,156.16,156.12,18.933972]
[1750046522693,9.30903179,156.17,156.12,18.933972]
[1750046522894,9.30903179,156.17,156.12,8.02765493]
[1750046523194,9.30903179,156.17,156.12,18.933972]
[1750046523577,7.74333179,156.16,156.12,18.933972]
[1750046523774,1.5657,156.17,156.13,0.14216157]
[1750046523775,9.30903179,156.17,156.13,0.14216157]
[1750046523980,7.74333179,156.17,156.13,0.14216157]
[1750046524588,39.34333179,156.18,156.14,18.933972]
[1750046524803,31.6,156.18,156.14,18.933972]
[1750046524980,5.6,156.18,156.14,8.02765493]
[1750046525180,5.6,156.18,156.14,0.28432314]
[1750046525181,7.74333179,156.15,156.14,0.28432314]
[1750046525380,7.74333179,156.15,156.12,0.28432314]
[1750046525600,7.74333179,156.14,156.12,0.28432314]
[1750046526180,5.6,156.18,156.12,0.28432314]
[1750046526379,5.6,156.18,156.15,0.28432314]
[1750046526580,13.34333179,156.18,156.15,0.28432314]
[1750046526999,5.6,156.18,156.15,0.28432314]
[1750046528801,5.6,156.18,156.14,7.74333179]
[1750046528993,12.34333179,156.18,156.15,18.933972]
[1750046529200,4.6,156.18,156.15,18.933972]
[1750046530407,4.6,156.18,156.15,0.42648471]
[1750046531283,4.6,156.18,156.16,0.28432314]
[1750046531902,4.6,156.18,156.17,18.933972]
[1750046532422,4.6,156.18,156.17,0.28432314]
[1750046532584,4.6,156.18,156.06,32.71447018]
[1750046532585,38.34333179,156.18,156.1,7.74333179]
[1750046532785,7.74333179,156.15,156.1,18.64964886]
[1750046533003,7.74333179,156.16,156.11,7.74333179]
[1750046533199,7.74333179,156.17,156.13,18.64964886]
[1750046533494,39.98653179,156.18,156.13,18.64964886]
[1750046533814,39.98653179,156.18,156.13,7.74333179]
[1750046534612,39.98653179,156.18,156.13,18.933972]
[1750046535217,32.2432,156.18,156.14,7.74333179]
[1750046535412,11.47666677,156.22,156.17,18.64964886]
[1750046535588,5.66,156.21,156.18,7.74333179]
[1750046536093,5.66,156.21,156.18,18.933972]
[1750046536412,5.66,156.21,156.18,0.28432314]
[1750046536813,5.66,156.21,156.01,15.17809192]
[1750046536814,7.74333179,156.19,156.06,16.01860138]
[1750046536995,7.74333179,156.17,156.14,0.28432314]
[1750046537388,7.74333179,156.17,156.14,0.14216157]
[1750046537590,7.74333179,156.18,156.14,0.14216157]
[1750046537897,7.74333179,156.18,156.14,0.28432314]
[1750046538292,7.74333179,156.17,156.14,0.28432314]
[1750046539105,7.74333179,156.17,156.14,0.14216157]
[1750046539406,7.74333179,156.18,156.14,0.14216157]
[1750046540892,4.74349897,156.18,156.14,0.14216157]
[1750046541108,4.74349897,156.17,156.13,0.14216157]
[1750046541315,4.74349897,156.18,156.14,0.28432314]
[1750046541612,4.74349897,156.19,156.14,0.28432314]
[1750046543025,4.74349897,156.18,156.14,0.28432314]
[1750046544025,4.74349897,156.19,156.14,5.16998368]
[1750046544318,26.0,156.2,156.16,0.28432314]
[1750046544319,4.74349897,156.2,156.16,0.28432314]
[1750046544488,5.66,156.21,156.18,0.28432314]
[1750046544885,4.74349897,156.2,156.18,0.14216157]
[1750046545091,4.74349897,156.2,156.15,5.16998368]
[1750046546202,4.74349897,156.2,156.15,0.42648471]
[1750046546411,4.74349897,156.2,156.15,5.16998368]
[1750046548317,4.74349897,156.2,156.15,23.81963254]
[1750046548495,10.40349897,156.21,156.17,18.933972]
[1750046549096,5.66,156.21,156.17,18.933972]
[1750046549409,10.40349897,156.21,156.17,19.07613357]
[1750046552832,5.66,156.21,156.17,19.07613357]
[1750046553338,5.66,156.21,156.17,5.16998368]
[1750046554626,10.40349897,156.21,156.17,0.28432314]
[1750046554827,4.74349897,156.2,156.16,0.14216157]
[1750046555229,10.40349897,156.21,156.17,18.933972]
[1750046556939,4.74349897,156.2,156.17,0.28432314]
[1750046562674,4.74349897,156.2,156.15,23.81963254]
[1750046564875,4.74349897,156.2,156.15,19.07613357]
[1750046565100,4.74349897,156.2,156.15,23.81963254]
[1750046566858,4.74349897,156.17,156.1,8.109]
[1750046567042,6.1095,156.19,156.09,23.39314783]
[1750046567244,4.74349897,156.15,156.11,18.79181043]
[1750046567547,4.74349897,156.12,156.11,18.64964886]
[1750046567747,4.74349897,156.12,156.07,4.74349897]
[1750046567963,26.0,156.17,156.06,37.59429897]
[1750046567964,4.74349897,156.11,156.06,37.59429897]
[1750046568148,4.74349897,156.11,156.07,19.07613357]
[1750046568967,4.74349897,156.11,156.07,23.81963254]
[1750046569348,4.74349897,156.12,156.07,23.81963254]
[1750046570147,4.74349897,156.13,156.07,23.81963254]
[1750046570569,4.74349897,156.12,156.07,23.81963254]
[1750046571563,4.76497868,156.16,156.09,5.16998368]
[1750046571769,4.74349897,156.14,156.09,5.16998368]
[1750046572768,4.76497868,156.17,156.12,0.28432314]
[1750046572969,4.74349897,156.15,156.12,0.28432314]
[1750046573751,4.74349897,156.16,156.12,0.28432314]
[1750046574450,4.74349897,156.15,156.12,0.28432314]
[1750046575681,26.0,156.17,156.12,0.28432314]
[1750046575869,4.74349897,156.15,156.12,0.28432314]
[1750046576175,12.94697868,156.2,156.12,0.28432314]
[1750046576176,4.74349897,156.16,156.12,0.28432314]
[1750046577775,4.74349897,156.15,156.11,18.79181043]
[1750046580580,4.74349897,156.13,156.08,4.74349897]
[1750046580791,4.74349897,156.09,156.04,6.33749897]
[1750046581088,4.74349897,156.05,156.03,103.13422324]
[1750046581255,4.74349897,156.04,156.03,103.13422324]
[1750046581460,4.74349897,156.04,155.96,4.74349897]
[1750046581684,4.74349897,156.02,155.97,19.07613357]
[1750046581990,10.38349897,156.03,155.97,23.81963254]
[1750046582182,5.64,156.03,155.99,4.74349897]
[1750046582359,5.64,156.03,156.0,0.42648471]
[1750046583173,5.64,156.03,156.0,0.14216157]
[1750046583667,5.64,156.03,156.0,0.28432314]
[1750046583979,5.64,156.03,156.0,0.42648471]
[1750046586782,5.64,156.03,156.0,19.07613357]
[1750046586983,4.74349897,156.06,156.02,0.14216157]
[1750046588777,4.74349897,156.06,156.02,19.07613357]
[1750046589300,10.38349897,156.07,156.02,19.07613357]
[1750046589462,5.64,156.07,156.02,19.07613357]
[1750046589662,5.64,156.07,156.04,18.933972]
[1750046591391,10.38349897,156.07,156.04,18.933972]
[1750046591786,5.64,156.07,156.04,18.933972]
[1750046592799,4.74349897,156.05,156.02,18.64964886]
[1750046592974,4.74349897,156.03,156.02,18.64964886]
[1750046593601,4.74349897,156.03,156.0,0.42648471]
[1750046594278,4.74349897,156.04,156.0,0.42648471]
[1750046594703,4.74349897,156.04,156.0,0.28432314]
[1750046594877,5.64,156.07,156.02,0.14216157]
[1750046595210,4.74349897,156.05,156.02,0.28432314]
[1750046597082,4.74349897,156.04,156.01,0.14216157]
[1750046598217,5.64,156.07,156.01,0.14216157]
[1750046598382,4.74349897,156.05,156.01,0.14216157]
[1750046599279,5.64,156.07,156.01,0.14216157]
[1750046599477,4.74349897,156.05,156.01,0.14216157]
[1750046599892,5.64,156.07,156.03,0.42648471]
[1750046600092,5.64,156.07,156.06,0.28432314]
[1750046600288,5.64,156.07,156.06,23.81963254]
[1750046606811,4.74349897,156.13,156.08,0.42648471]
[1750046607019,4.74349897,156.13,156.08,5.16998368]
[1750046607210,4.74349897,156.13,156.08,0.42648471]
[1750046608222,4.74349897,156.13,156.1,0.28432314]
[1750046609014,7.2851,156.14,156.1,0.28432314]
[1750046609198,4.74349897,156.13,156.1,0.28432314]
[1750046609395,4.74349897,156.11,156.1,0.28432314]
[1750046610195,7.2851,156.14,156.1,0.28432314]
[1750046610401,7.2851,156.14,156.08,0.14216157]
[1750046610402,4.74349897,156.12,156.09,0.28432314]
[1750046611315,4.74349897,156.11,156.09,0.28432314]
[1750046612401,7.2851,156.14,156.07,0.42648471]
[1750046612618,4.74349897,156.12,156.07,5.16998368]
[1750046617423,4.74349897,156.1,156.06,19.07613357]
[1750046617659,4.74349897,156.11,156.06,19.07613357]
[1750046617830,4.74349897,156.11,156.06,18.933972]
[1750046620029,4.74349897,156.11,156.05,23.81963254]
[1750046620544,4.74349897,156.1,156.05,23.81963254]
[1750046620717,4.74349897,156.07,156.05,0.28432314]
[1750046621032,32.2396,156.11,156.05,0.28432314]
[1750046621033,4.74349897,156.08,156.05,0.28432314]
[1750046622920,4.74349897,156.08,156.03,0.14216157]
[1750046623124,4.74349897,156.07,156.03,0.14216157]
[1750046624116,32.2396,156.11,156.03,0.14216157]
[1750046624317,4.74349897,156.07,156.03,0.14216157]
[1750046624518,4.74349897,156.09,156.05,18.79181043]
[1750046624716,4.74349897,156.09,156.06,0.28432314]
[1750046625333,4.74349897,156.08,156.06,0.28432314]
[1750046628534,5.64,156.1,156.08,0.28432314]
[1750046628736,5.64,156.1,156.09,18.933972]
[1750046629316,5.64,156.1,156.09,5.16998368]
[1750046630041,5.64,156.1,156.09,26.42648471]
[1750046630214,5.64,156.1,156.09,49.81963254]
[1750046633239,5.64,156.1,156.09,76.01963254]
[1750046634918,4.74349897,156.14,156.1,0.14216157]
[1750046636039,4.74349897,156.13,156.1,19.07613357]
[1750046637630,4.74349897,156.13,156.1,18.933972]
[1750046637824,5.64,156.15,156.1,18.933972]
[1750046638022,4.74349897,156.13,156.1,18.933972]
[1750046638642,5.64,156.15,156.1,18.933972]
[1750046638840,4.74349897,156.13,156.1,18.933972]
[1750046640417,4.74349897,156.13,156.09,0.14216157]
[1750046640617,4.74349897,156.13,156.09,44.97181043]
[1750046643350,4.74349897,156.14,156.09,44.97181043]
[1750046644845,4.74349897,156.14,156.09,49.7153094]
[1750046645347,10.38349897,156.15,156.11,0.28432314]
[1750046645535,10.38349897,156.15,156.13,0.28432314]
[1750046646445,4.74349897,156.14,156.11,26.16]
[1750046646749,4.74349897,156.12,156.11,0.14216157]
[1750046646953,4.74349897,156.12,156.1,18.79181043]
[1750046647147,4.74349897,156.12,156.11,0.14216157]
[1750046647929,4.74349897,156.12,156.1,0.14216157]
[1750046648129,4.74349897,156.11,156.1,0.28432314]
[1750046648647,4.74349897,156.11,156.1,0.14216157]
[1750046648838,4.74349897,156.13,156.1,0.14216157]
[1750046650251,4.74349897,156.13,156.09,0.14216157]
[1750046651338,4.74349897,156.12,156.08,0.28432314]
[1750046651650,4.74349897,156.11,156.08,0.28432314]
[1750046651858,4.74349897,156.09,156.01,97.3636]
[1750046652056,4.74349897,156.07,156.02,44.82964886]
[1750046652258,4.74349897,156.07,156.03,0.42648471]
[1750046653232,4.74349897,156.05,156.02,18.64964886]
[1750046653558,4.74349897,156.03,156.0,26.18]
[1750046653742,4.74349897,156.03,156.0,19.07613357]
[1750046654344,4.74349897,156.03,156.0,18.64964886]
[1750046654750,4.74349897,156.03,155.99,18.64964886]
[1750046655052,4.74349897,156.03,156.0,0.42648471]
[1750046655241,4.74349897,156.03,156.0,0.28432314]
[1750046655753,4.74349897,156.04,156.0,0.42648471]
[1750046658141,5.6,156.06,156.0,0.42648471]
[1750046658340,4.74349897,156.04,156.0,0.42648471]
[1750046659154,5.6,156.09,156.03,18.79181043]
[1750046659340,4.74349897,156.07,156.03,44.95181043]
[1750046659666,4.74349897,156.08,156.03,44.95181043]